fUSD/lending_fUSD_20240117
["ID","MTS","AMOUNT","RATE_DAILY","PERIOD"]
[311870094,1705480552889,-500.0,0.0004,30]
[311870095,1705480552912,-500.0,0.0004,30]
[311870096,1705480552939,-500.0,0.0004,30]
[311870097,1705480552965,-500.0,0.0004,30]
[311870098,1705480552990,-400.0,0.0004,120]
[311870099,1705480553015,-3088.30642428,0.0004,30]
[311870100,1705480553039,-280.0,0.0004,30]
[311870101,1705480553063,-1750.85555671,0.0004,30]
[311870102,1705480553089,-8576.9244843,0.0004,30]
[311870103,1705480553112,-3353.59614765,0.0004,30]
[311870104,1705480553136,-2000.0,0.0004,90]
[311870105,1705480553159,-306.0,0.0004,30]
[311870106,1705480553183,-181.67778314,0.0004,120]
[311870107,1705480553206,-189.0,0.0004,120]
[311870108,1705480553229,-989.11573792,0.0004,30]
[311870109,1705480553253,-666.75184588,0.0004,120]
[311870110,1705480553277,-326.09189866,0.0004,30]
[311870111,1705480553301,-433.0,0.0004,30]
[311870112,1705480553325,-518.25,0.0004,30]
[311870113,1705480553350,-361.0,0.0004,30]
[311870114,1705480553373,-209.52128736,0.0004,30]
[311870115,1705480553399,-12074.38361224,0.0004,30]
[311870116,1705480553424,-14468.99901124,0.0004,30]
[311870117,1705480553450,-15109.6584417,0.0004,30]
[311870118,1705480553475,-57431.0879096,0.0004,30]
[311870119,1705480553501,-32326.9077455,0.0004,30]
[311870120,1705480553525,-10460.36916678,0.0004,30]
[311870121,1705480553550,-11732.40291056,0.0004,30]
[311870122,1705480553575,-11847.54978122,0.0004,30]
[311870123,1705480553602,-9977.70996312,0.0004,30]
[311870124,1705480553628,-20495.87895312,0.0004,30]
[311870125,1705480553651,-1000.0,0.0004,30]
[311870126,1705480553675,-200.0,0.0004,30]
[311870127,1705480553700,-45210.40978023,0.0004,30]
[311870128,1705480553728,-1000.0,0.0004,32]
[311870129,1705480553754,-512.55,0.00040368,60]
[311870130,1705480553780,-170.84,0.00040368,60]
[311870131,1705480553805,-172.0,0.0004044,50]
[311870132,1705480554074,-5000.0,0.000405,30]
[311870133,1705480554098,-512.55,0.00040633,60]
[311870134,1705480554123,-170.84,0.00040633,60]
[311870135,1705480554148,-2500.0,0.000408,42]
[311870136,1705480554174,-1208.0,0.00040852,30]
[311870137,1705480554199,-512.55,0.00040898,60]
[311870138,1705480554223,-170.84,0.00040898,60]
[311870139,1705480554247,-400.0,0.00040932,120]
[311870140,1705480554271,-350.0,0.00040986,120]
[311870141,1705480554295,-500.0,0.00040987,31]
[311870142,1705480554321,-1000.0,0.00041,60]
[311870143,1705480554347,-300.0,0.00041,42]
[311870144,1705480554369,-157.7778206,0.00041,120]
[311870145,1705480554394,-1000.0,0.00041,120]
[311870146,1705480554418,-712.0,0.00041,30]
[311870147,1705480554441,-77412.11525611,0.00041,30]
[311870148,1705480554466,-5000.0,0.00041,30]
[311870149,1705480554490,-3204.0,0.00041,120]
[311870150,1705480554514,-53516.83670154,0.00041,30]
[311870151,1705480554538,-1000.0,0.00041014,30]
[311870152,1705480554562,-384.32618362,0.00041042,100]
[311870153,1705480554586,-500.0,0.00041095,60]
[311870154,1705480554612,-500.0,0.00041095,30]
[311870155,1705480554638,-500.0,0.00041095,30]
[311870156,1705480554662,-500.0,0.00041095,30]
[311870157,1705480554685,-500.0,0.00041095,30]
[311870158,1705480554711,-500.0,0.00041095,30]
[311870159,1705480554736,-613.60876159,0.00041095,30]
[311870160,1705480554760,-1000.0,0.00041095,30]
[311870161,1705480554786,-1000.0,0.00041095,30]
[311870162,1705480554809,-1000.0,0.00041095,30]
[311870163,1705480554863,-1000.0,0.00041095,30]
[311870164,1705480554887,-603.71012375,0.00041095,30]
[311870165,1705480554913,-1411.80627096,0.00041095,120]
[311870166,1705480554938,-510.0,0.00041095,120]
[311870167,1705480554965,-512.55,0.00041163,60]
[311870168,1705480554991,-170.84,0.00041163,60]
[311870169,1705480555017,-510.0,0.00041369,120]
[311870170,1705480555042,-1000.0,0.0004137,120]
[311870171,1705480555068,-1000.0,0.0004137,120]
[311870172,1705480555092,-512.55,0.00041428,60]
[311870173,1705480555118,-170.84,0.00041428,60]
[311870174,1705480555143,-150.0,0.00041576,120]
[311870175,1705480555167,-500.0,0.00041643,60]
[311870176,1705480555191,-510.0,0.00041643,120]
[311870177,1705480555229,-512.55,0.00041693,60]
[311870178,1705480555255,-170.84,0.00041693,60]
[311870179,1705480555279,-1000.0,0.000418,30]
[311870180,1705480555303,-2500.0,0.000418,41]
[311870181,1705480555327,-400.0,0.00041863,120]
[311870182,1705480555352,-1337.50094142,0.000419,60]
[311870183,1705480555376,-510.0,0.00041917,120]
[311870184,1705480555401,-512.55,0.00041958,60]
[311870185,1705480555428,-170.84,0.00041958,60]
[311870186,1705480555455,-350.0,0.00041973,120]
[311870187,1705480555482,-500.0,0.00041987,33]
[311870188,1705480555512,-501.50467123,0.00042,30]
[311870189,1705480555538,-1000.0,0.00042,60]
[311870190,1705480555567,-1601.23609337,0.00042,60]
[311870191,1705480555594,-1569.92127102,0.00042,120]
[311870192,1705480555624,-301.47527822,0.00042,120]
[311870193,1705480555651,-300.0,0.00042,43]
[311870194,1705480555676,-866.95353583,0.00042,120]
[311870195,1705480555701,-1420.19033504,0.00042,30]
[311870196,1705480555727,-620.0,0.00042,120]
[311870197,1705480555753,-1812.01626427,0.00042,120]
[311870198,1705480555777,-9843.88452175,0.00042,30]
[311870199,1705480555800,-1975.68462282,0.00042,30]
[311870200,1705480555825,-397.49,0.00042,30]
[311870201,1705480555850,-10000.0,0.00042,90]
[311870202,1705480555874,-20000.0,0.00042,30]
[311870203,1705480555898,-245.0,0.00042,30]
[311870204,1705480555924,-160.0,0.00042,120]
[311870205,1705480555950,-151.0,0.00042,120]
[311870206,1705480555980,-200.0,0.00042,30]
[311870207,1705480556004,-1000.0,0.00042028,30]
[311870208,1705480556030,-150.0,0.00042168,120]
[311870209,1705480556054,-500.0,0.00042191,60]
[311870210,1705480556077,-510.0,0.00042191,120]
[311870211,1705480556101,-512.55,0.00042223,60]
[311870212,1705480556125,-170.84,0.00042223,60]
[311870213,1705480556149,-207.0,0.0004234,120]
[311870214,1705480556176,-2500.0,0.0004234,45]
[311870215,1705480556200,-185.0,0.0004246,54]
[311870216,1705480556225,-510.0,0.00042465,120]
[311870217,1705480556249,-200.0,0.000425,30]
[311870218,1705480556273,-850.0,0.000425,120]
[311870219,1705480556296,-500.000001,0.000425,120]
[311870220,1705480556321,-348.01047431,0.00042546,120]
[311870221,1705480556347,-183.0,0.00042627,90]
[311870222,1705480556373,-2454.96392121,0.00042687,30]
[311870223,1705480556398,-40117.81,0.000427,45]
[311870224,1705480556427,-209.0,0.000427,30]
[311870225,1705480556456,-3810.0,0.000427,92]
[311870226,1705480556485,-701.59965022,0.00042725,90]
[311870227,1705480556514,-206.0,0.00042727,33]
[311870228,1705480556540,-500.0,0.00042739,60]
[311870229,1705480556565,-510.0,0.00042739,120]
[311870230,1705480556591,-400.0,0.00042795,120]
[311870231,1705480556620,-881.42335289,0.000429,30]
[311870232,1705480556645,-350.0,0.00042959,120]
[311870233,1705480556671,-500.0,0.00042987,35]
[311870234,1705480556931,-788.67878306,0.0004299,90]
[311870235,1705480556957,-40417.2263095,0.00042999,30]
[311870236,1705480556981,-1000.0,0.00043,60]
[311870237,1705480557007,-2000.0,0.00043,32]
[311870238,1705480557031,-458.64901186,0.00043,120]
[311870239,1705480557055,-300.0,0.00043,44]
[311870240,1705480557080,-1000.0,0.00043,30]
[311870241,1705480557104,-1000.0,0.00043,120]
[311870242,1705480557128,-2621.74542052,0.00043,120]
[311870243,1705480557151,-738.77092102,0.00043,30]
[311870244,1705480557175,-5657.61745491,0.00043,120]
[311870245,1705480557199,-1000.0,0.00043,30]
[311870246,1705480557223,-5000.0,0.00043,30]
[311870247,1705480557247,-20000.0,0.00043,45]
[311870248,1705480557270,-20000.0,0.00043,30]
[311870249,1705480557295,-635.55350709,0.00043,30]
[311870250,1705480557321,-510.0,0.00043013,120]
[311870251,1705480557345,-1000.0,0.00043042,30]
[311870252,1705480557370,-172.59432,0.000432,30]
[311870253,1705480557396,-413.20816532,0.00043287,60]
[311870254,1705480557422,-510.0,0.00043287,120]
[311870255,1705480557451,-201.42591571,0.000433,30]
[311870256,1705480557475,-184.02601921,0.00043381,30]
[311870257,1705480557500,-2500.0,0.0004348,44]
[311870258,1705480557524,-2000.0,0.000435,32]
[311870259,1705480557549,-2000.0,0.000435,32]
[311870260,1705480557572,-2000.0,0.000435,36]
[311870261,1705480557595,-2000.0,0.000435,36]
[311870262,1705480557626,-2000.0,0.000435,32]
[311870263,1705480557651,-1254.43917064,0.000435,120]
[311870264,1705480557676,-299.0,0.000435,30]
[311870265,1705480557701,-224.55196469,0.000435,120]
[311870266,1705480557726,-510.0,0.00043561,120]
[311870267,1705480557750,-10007.05537521,0.000437,30]
[311870268,1705480557780,-400.0,0.00043726,120]
[311870269,1705480557806,-577.25307532,0.00043798,60]
[311870270,1705480557834,-1271.39285637,0.00043798,60]
[311870271,1705480557858,-2842.43258912,0.00043799,44]
[311870272,1705480557883,-1201.77713253,0.000438,30]
[311870273,1705480557906,-209.0,0.000438,30]
[311870274,1705480557931,-3000.0,0.00043835,120]
[311870275,1705480557954,-510.0,0.00043835,120]
[311870276,1705480557979,-290.0,0.00043835,45]
[311870277,1705480558002,-280.91360253,0.00043835,45]
[311870278,1705480558027,-1234.3869154,0.00043857,45]
[311870279,1705480558051,-2124.24919936,0.00043861,45]
[311870280,1705480558075,-299.55899035,0.00043862,45]
[311870281,1705480558099,-451.85198086,0.00043869,45]
[311870282,1705480558123,-451.85198086,0.00043874,45]
[311870283,1705480558146,-2124.24919936,0.00043878,45]
[311870284,1705480558169,-260.74424987,0.0004388,45]
[311870285,1705480558194,-299.55899035,0.0004388,45]
[311870286,1705480558217,-260.74424987,0.00043883,45]
[311870287,1705480558241,-260.74424987,0.00043885,45]
[311870288,1705480558268,-2124.24919936,0.00043885,45]
[311870289,1705480558292,-451.85198086,0.00043887,45]
[311870290,1705480558318,-1234.3869154,0.00043889,45]
[311870291,1705480558346,-299.55899035,0.00043896,45]
[311870292,1705480558370,-1234.3869154,0.00043897,45]
[311870293,1705480558396,-453.10368155,0.000439,60]
[311870294,1705480558421,-350.0,0.00043945,120]
[311870295,1705480558446,-191.81927313,0.0004395,120]
[311870296,1705480558469,-1735.85659983,0.00043958,30]
[311870297,1705480558493,-1735.85659983,0.0004396,30]
[311870298,1705480558518,-366.67160142,0.00043961,30]
[311870299,1705480558542,-1735.85659983,0.00043962,30]
[311870300,1705480558565,-200.0,0.00043962,30]
[311870301,1705480558588,-219.29256871,0.00043964,30]
[311870302,1705480558611,-219.29256871,0.00043966,30]
[311870303,1705480558641,-635.41684813,0.00043967,30]
[311870304,1705480558664,-366.67160142,0.00043968,30]
[311870305,1705480558688,-1735.85659983,0.0004397,30]
[311870306,1705480558714,-200.0,0.00043971,30]
[311870307,1705480558737,-366.67160142,0.00043972,30]
[311870308,1705480558762,-200.0,0.00043973,30]
[311870309,1705480558786,-219.29256871,0.00043977,30]
[311870310,1705480558811,-2987.22543665,0.00043977,30]
[311870311,1705480558837,-421.25483023,0.00043981,30]
[311870312,1705480558861,-2987.22543665,0.00043981,30]
[311870313,1705480558885,-2987.22543665,0.00043982,30]
[311870314,1705480558908,-421.25483023,0.00043984,30]
[311870315,1705480558931,-635.41684813,0.00043985,30]
[311870316,1705480558955,-200.0,0.00043985,30]
[311870317,1705480558978,-421.25483023,0.00043987,30]
[311870318,1705480559002,-500.0,0.00043987,37]
[311870319,1705480559025,-200.0,0.00043988,30]
[311870320,1705480559048,-200.0,0.00043988,30]
[311870321,1705480559070,-635.41684813,0.00043989,30]
[311870322,1705480559093,-200.0,0.0004399,30]
[311870323,1705480559115,-219.29256871,0.00043993,30]
[311870324,1705480559138,-2307.89963879,0.00043995,30]
[311870325,1705480559160,-635.41684813,0.00043997,30]
[311870326,1705480559184,-366.67160142,0.00043997,30]
[311870327,1705480559208,-2987.22543665,0.00043998,30]
[311870328,1705480559231,-4000.0,0.00043998,31]
[311870329,1705480559256,-421.25483023,0.00043999,30]
[311870330,1705480559280,-299.26988173,0.00044,120]
[311870331,1705480559304,-455.75296645,0.00044,30]
[311870332,1705480559327,-56741.09494888,0.00044,55]
[311870333,1705480574539,-614.68758993,0.00038,30]
[311870334,1705480574618,-943258.90505112,0.00044,55]
[311870335,1705480574642,-2105.58,0.00044,36]
[311870336,1705480574669,-13625.73181281,0.00044,30]
[311870337,1705480574693,-1740.0,0.00044,30]
[311870338,1705480574719,-107104.22264086,0.00044,30]
[311870339,1705480574756,-435.05563487,0.00044,30]
[311870340,1705480574833,-516.90416731,0.00044,120]
[311870341,1705480574913,-1757.43364242,0.00044,30]
[311870342,1705480574940,-184.78924776,0.00044,60]
[311870343,1705480574965,-185.81050148,0.00044,30]
[311870344,1705480574989,-1000.0,0.00044,120]
[311870345,1705480575013,-2000.0,0.00044,30]
[311870346,1705480575037,-8800.0,0.00044,30]
[311870347,1705480575062,-2500.0,0.00044,46]
[311870348,1705480575085,-1000.0,0.00044,120]
[311870349,1705480575109,-320000.00000001,0.00044,30]
[311870350,1705480575134,-2500.0,0.00044,30]
[311870351,1705480575158,-5000.0,0.00044,30]
[311870352,1705480575182,-10000.0,0.00044,90]
[311870353,1705480575206,-989.57924393,0.00044,31]
[311870354,1705480575230,-20000.0,0.00044,30]
[311870355,1705480575255,-30000.0,0.00044,45]
[311870356,1705480575280,-24807.69870474,0.00044,60]
[311870357,1705480575304,-316.64108848,0.00044,120]
[311870358,1705480575327,-1499.99999901,0.00044,30]
[311870359,1705480575354,-200.0,0.00044,30]
[311870360,1705480575379,-1000.0,0.00044056,30]
[311870361,1705480575404,-30000.0,0.000441,30]
[311870362,1705480575428,-440.52224581,0.000441,120]
[311870363,1705480575452,-10568.54777571,0.000441,120]
[311870364,1705480575477,-510.0,0.00044109,120]
[311870365,1705480575503,-150.0,0.00044173,120]
[311870366,1705480575530,-510.0,0.00044383,120]
[311870367,1705480575557,-454677.89065375,0.000444,70]
[311870368,1705480581070,-323858.90722189,0.00035551,120]
[311870369,1705480581094,-1638.53230381,0.00035551,30]
[311870370,1705480581117,-936.62592067,0.00035551,120]
[311870371,1705480581140,-1309.70004891,0.00035551,30]
[311870372,1705480581163,-549.80927983,0.00035551,120]
[311870373,1705480581186,-162.97719743,0.00035551,120]
[311870374,1705480581210,-1453.8054489,0.00035551,120]
[311870375,1705480581234,-455.37553135,0.00035551,120]
[311870376,1705480581257,-238172.97964685,0.00035551,120]
[311870377,1705480581281,-220.0,0.00035551,120]
[311870378,1705480581305,-1508.22983465,0.00035551,120]
[311870379,1705480581328,-157.88711934,0.00035551,30]
[311870380,1705480581351,-166.28656785,0.00035551,30]
[311870381,1705480581375,-150.64137352,0.00035551,30]
[311870382,1705480581398,-179.91308211,0.00035551,30]
[311870383,1705480581421,-247.49415696,0.00035551,30]
[311870384,1705480581445,-277.0,0.00035551,120]
[311870385,1705480581469,-347.40427631,0.00035551,120]
[311870386,1705480581494,-484.4700365,0.00035551,30]
[311870387,1705480581517,-239.22663333,0.00035551,120]
[311870388,1705480581541,-10201.43582487,0.00035551,120]
[311870389,1705480581563,-217.4300675,0.00035551,120]
[311870390,1705480581587,-225.33609596,0.00035551,120]
[311870391,1705480581611,-162.42106799,0.00035551,30]
[311870392,1705480581642,-28502.73084055,0.00035551,120]
[311870393,1705480581666,-281.05907294,0.00035551,120]
[311870394,1705480581688,-3836.8950791,0.00035551,120]
[311870395,1705480581715,-694.49160137,0.00035551,120]
[311870396,1705480581737,-247.94874752,0.00035551,120]
[311870397,1705480581760,-752.0,0.00035551,120]
[311870398,1705480581785,-215.0,0.00035551,120]
[311870399,1705480581809,-156.82818739,0.00035551,30]
[311870400,1705480581833,-2099.22491187,0.00035551,120]
[311870401,1705480581856,-1970.005619,0.00035551,30]
[311870402,1705480581879,-1896.472651,0.00035551,30]
[311870403,1705480581902,-305.562532,0.00035551,30]
[311870404,1705480589341,-150.5,0.0003797,120]
[311870405,1705480589363,-150.5,0.0003797,120]
[311870406,1705480589387,-150.5,0.0003798,120]
[311870407,1705480589409,-152.58,0.0003798,120]
[311870408,1705480589431,-150.5,0.0003798,120]
[311870409,1705480589454,-150.5,0.0003799,120]
[311870410,1705480589477,-150.5,0.0003799,120]
[311870411,1705480589500,-210.4,0.0003799,120]
[311870412,1705480589522,-225.92,0.0003799,30]
[311870413,1705480589546,-150.5,0.0003799,120]
[311870414,1705480589568,-212.45,0.0003799,120]
[311870415,1705480589613,-158.58175541,0.0004,30]
[311870416,1705480589638,-399.32711513,0.0004,30]
[311870417,1705480589681,-1208.0,0.00042829,30]
[311870418,1705480589707,-189.0,0.000432,30]
[311870419,1705480589733,-150.0,0.00044,30]
[311870420,1705480589756,-189.0,0.000443,30]
[311870421,1705480589780,-545322.10934625,0.000444,70]
[311870422,1705480589804,-669.4753589,0.000444,30]
[311870423,1705480589826,-77233.68097536,0.000444,30]
[311870424,1705480589851,-2000.0,0.000445,36]
[311870425,1705480589873,-1000.0,0.000445,120]
[311870426,1705480589897,-1291.28873629,0.000445,60]
[311870427,1705480589922,-602.50589524,0.00044575,30]
[311870428,1705480589945,-316.60601326,0.00044575,30]
[311870429,1705480589970,-500.0,0.00044575,30]
[311870430,1705480589993,-500.0,0.00044575,30]
[311870431,1705480590017,-500.0,0.00044575,30]
[311870432,1705480590041,-500.0,0.00044575,30]
[311870433,1705480590065,-448.5202905,0.00044575,30]
[311870434,1705480590088,-500.0,0.00044575,30]
[311870435,1705480590111,-500.0,0.00044575,30]
[311870436,1705480590135,-500.0,0.00044575,30]
[311870437,1705480590159,-500.0,0.00044575,30]
[311870438,1705480590181,-500.0,0.00044575,30]
[311870439,1705480590205,-177.59341237,0.00044575,30]
[311870440,1705480590229,-300.0,0.00044575,30]
[311870441,1705480590252,-500.0,0.00044575,30]
[311870442,1705480590276,-218.23323695,0.00044575,30]
[311870443,1705480590298,-500.0,0.00044575,30]
[311870444,1705480590321,-449.31464365,0.00044575,30]
[311870445,1705480590343,-500.0,0.00044575,30]
[311870446,1705480590365,-500.0,0.00044575,30]
[311870447,1705480590388,-638.9697851,0.00044575,30]
[311870448,1705480590410,-500.0,0.00044575,30]
[311870449,1705480590433,-402.71353135,0.00044575,30]
[311870450,1705480590456,-167.4672631,0.00044575,30]
[311870451,1705480590480,-299.95977996,0.00044575,30]
[311870452,1705480590503,-471.62526264,0.00044575,30]
[311870453,1705480590528,-500.0,0.00044575,30]
[311870454,1705480590551,-500.0,0.00044575,30]
[311870455,1705480590575,-245.37098992,0.00044575,30]
[311870456,1705480590599,-500.0,0.00044575,30]
[311870457,1705480590624,-500.0,0.00044575,30]
[311870458,1705480590659,-500.0,0.00044575,30]
[311870459,1705480590683,-500.0,0.00044575,30]
[311870460,1705480590707,-203.86,0.000446,120]
[311870461,1705480590730,-510.0,0.00044657,120]
[311870462,1705480590755,-400.0,0.00044658,120]
[311870463,1705480590778,-305.0,0.00044747,120]
[311870464,1705480590801,-477.16877711,0.0004475,30]
[311870465,1705480590823,-2654.58569262,0.000448,30]
[311870466,1705480590846,-281.2794,0.000448,30]
[311870467,1705480590868,-2878.21442618,0.00044898,46]
[311870468,1705480590896,-460033.81259336,0.000449,30]
[311870469,1705480590918,-5122.55047078,0.000449,30]
[311870470,1705480590942,-3118.0,0.000449,30]
[311870471,1705480590965,-510.0,0.00044931,120]
[311870472,1705480590989,-350.0,0.00044932,120]
[311870473,1705480591018,-191.81927313,0.0004495,120]
[311870474,1705480591042,-500.0,0.00044987,39]
[311870475,1705480591066,-500.0,0.0004499,60]
[311870476,1705480591089,-400.0,0.00044996,120]
[311870477,1705480591112,-335.36086729,0.00044999,30]
[311870478,1705480591137,-874824.15510815,0.00045,30]
[311870479,1705480597659,-347.62969429,0.0004,30]
[311870480,1705480597683,-2052.54995259,0.0004,30]
[311870481,1705480597734,-6720.94264023,0.00044,30]
[311870482,1705480597762,-1990878.87771289,0.00045,30]
[311870483,1705480602218,150.0,0.0002,2]
[311870484,1705480670278,150.0,0.0002,2]
[311870485,1705480775631,595.70441753,0.00021917,30]
[311870582,1705480832194,238.62,0.00018427,2]
[311870592,1705481331732,242.58,0.00018327,2]
[311870593,1705481373121,-503.84036235,0.00020149,2]
[311870594,1705481373145,-162.37641408,0.0002015,2]
[311870595,1705481373170,-162.86,0.00020197,2]
[311870596,1705481373190,-1490.39,0.00020228,2]
[311870597,1705481373211,-460.47,0.0002023,2]
[311870598,1705481373233,-15508.65,0.0002023,2]
[311870599,1705481373252,-175.79,0.00020236,2]
[311870600,1705481373273,-2506.91,0.00020245,2]
[311870601,1705481373293,-150.0,0.0002025,2]
[311870602,1705481373314,-942.1,0.00020287,2]
[311870603,1705481373335,-152.37,0.00020299,2]
[311870604,1705481373355,-499.99,0.00020304,2]
[311870605,1705481373375,-462.42,0.00020304,2]
[311870606,1705481373395,-150.0,0.00020329,2]
[311870607,1705481373415,-1000.0,0.00020396,2]
[311870608,1705481373437,-2000.0,0.00020548,2]
[311870609,1705481373458,-158.66,0.00020556,2]
[311870610,1705481373479,-319.62,0.00020556,2]
[311870611,1705481373501,-206.0,0.00020575,2]
[311870612,1705481373525,-242.58,0.00020591,2]
[311870613,1705481373550,-213.97,0.00020616,2]
[311870614,1705481373571,-213.97,0.00020724,2]
[311870615,1705481373592,-162.37641405,0.00020797,2]
[311870616,1705481373616,-152.37,0.00020828,2]
[311870617,1705481373639,-213.97,0.00020833,2]
[311870618,1705481373660,-727.01,0.00020853,2]
[311870619,1705481373680,-150.99,0.00020853,2]
[311870620,1705481373700,-213.97,0.00020941,2]
[311870621,1705481373835,250.0,0.00020227,2]
[311870654,1705481431875,-390.7268265,0.0002099,2]
[311870656,1705481431884,-222.18268829,0.00021,2]
[311870658,1705481431941,-500.85731171,0.00021,2]
[311870659,1705481431951,-292.64816053,0.00021,2]
[311870660,1705481432073,-2271.7565,0.00021,2]
[311870661,1705481432085,-347.34031176,0.00021,2]
[311870663,1705481432363,-1973.66218496,0.00021,2]
[311870664,1705481432388,-14686.92481719,0.00021,2]
[311870665,1705481432400,-427.66802556,0.00021,2]
[311870666,1705481432409,-1000.0,0.00021,2]
[311870667,1705481432418,-213.97,0.0002105,2]
[311870668,1705481432427,-169.1,0.00021134,2]
[311870669,1705481432436,-213.97,0.00021158,2]
[311870670,1705481432446,-176.27,0.00021191,2]
[311870671,1705481432455,-460.47,0.00021208,2]
[311870672,1705481432464,-213.97,0.00021267,2]
[311870673,1705481432473,-152.37,0.00021357,2]
[311870674,1705481432482,-1319.42275214,0.00021375,3]
[311870675,1705481432492,-213.97,0.00021375,2]
[311870676,1705481432501,-162.37641405,0.00021444,2]
[311870677,1705481432509,-1040.49523311,0.00021464,2]
[311870678,1705481432521,-257.11704311,0.00021464,2]
[311870682,1705481438012,-1436.66143313,0.00021464,2]
[311870683,1705481438026,-213.97,0.00021484,2]
[311870684,1705481438039,-200.0,0.000215,7]
[311870685,1705481438051,-158.66,0.00021523,2]
[311870686,1705481438063,-213.97,0.00021592,2]
[311870687,1705481438078,-500.0,0.000216,7]
[311870688,1705481438090,-189.24,0.00021644,2]
[311870689,1705481438102,-394.95584771,0.00021696,2]
[311870690,1705481438114,-562.12186736,0.00021696,2]
[311870691,1705481438125,-700.0,0.000217,7]
[311870692,1705481438137,-213.97,0.00021701,2]
[311870693,1705481438150,-46552.1609,0.00021716,2]
[311870694,1705481438162,-818.15474733,0.00021717,2]
[311870695,1705481438173,-214.14018748,0.00021717,2]
[311870696,1705481438186,-351.33,0.00021739,2]
[311870697,1705481438198,-1000.0,0.000218,7]
[311870698,1705481438209,-198.51848582,0.00021806,2]
[311870699,1705481438221,-213.97,0.00021809,2]
[311870700,1705481438232,-17502.81150446,0.00021814,2]
[311870701,1705481438243,-503.84036235,0.00021814,2]
[311870702,1705481438254,-155.0,0.00021815,2]
[311870703,1705481438266,-161.01,0.00021815,2]
[311870704,1705481438277,-514155.48576276,0.00021816,2]
[311870705,1705481438289,-250.0,0.00021817,2]
[311870706,1705481438300,-6698.1181,0.00021817,2]
[311870707,1705481438310,-49607.4014,0.00021817,2]
[311870708,1705481438322,-13082.34542559,0.00021817,2]
[311870709,1705481438333,-920.08099822,0.00021817,2]
[311870710,1705481438345,-7861.33417819,0.00021817,2]
[311870711,1705481438356,-998.50454565,0.00021817,2]
[311870712,1705481438367,-166.68482098,0.00021817,2]
[311870713,1705481438378,-200.0,0.00021865,2]
[311870714,1705481438389,-1446.33826501,0.0002187,2]
[311870715,1705481438400,-1200.0,0.000219,7]
[311870717,1705481438411,-417.99759003,0.00021904,2]
[311870719,1705481438422,-811.04398983,0.00021914,2]
[311870722,1705481438433,-800.09286468,0.00021915,4]
[311870724,1705481438443,-549.94537401,0.00021915,2]
[311870726,1705481438455,-155.76518588,0.00021915,2]
[311870728,1705481438466,-1200.88686892,0.00021915,2]
[311870730,1705481438476,-2914.87900429,0.00021915,2]
[311870732,1705481438486,-299.02438922,0.00021915,2]
[311870734,1705481438497,-1815.9387827,0.00021915,2]
[311870736,1705481438509,-901.45669986,0.00021915,2]
[311870738,1705481438519,-157.29987535,0.00021915,2]
[311870797,1705481439094,-181.79863532,0.00021915,2]
[311870799,1705481439105,-288.29485518,0.00021915,2]
[311870801,1705481439115,-2436.7288395,0.00021915,2]
[311870803,1705481439125,-587.73790085,0.00021915,2]
[311870805,1705481439135,-1796.35926978,0.00021915,2]
[311870807,1705481439145,-4152.39503697,0.00021915,2]
[311870809,1705481439155,-494.14360933,0.00021916,2]
[311870811,1705481439165,-1182.2088087,0.00021916,2]
[311870813,1705481439180,-1302.09299865,0.00021916,2]
[311870815,1705481439190,-1255.79384089,0.00021916,2]